{"text_format":"1","workbook":"xlsx","n_sheets":6,"sheets":["Биохимия","Лист1","Лист2","Лист6","Расходование реагентов","Отчет"],"not_rendered":{"charts":0,"images":0,"macros":1,"external_links":0,"defined_names":18,"comments":0,"pivot_tables":0},"unopened":[],"bounds":{"document_bytes":16777216,"sheet_cells":100000,"rows_first":2000,"rows_last":500,"rows_between":2000,"halvings":0,"cell_chars":16384,"cell_head_chars":4096},"cells_cut":0,"cells_raw":0,"read":"whole","date_system":"1900"}

{"sheet":"Биохимия","index":0,"n_rows":52,"n_cols":33,"rows_kept":52,"cut":false,"hidden":false,"merged":[]}
[null,null,"БИОХИМИЯ","Общий белок","Альбумин","Общий билирубин (норма)","Общий билирубин (патология)","Прямой билирубин","Непрямой билирубин","Мочевина","Креатинин","Мочевая кислота","Холестерин","Триглицериды","АЛТ (норма)","АЛТ (патология)","АСТ (норма)","АСТ (патология)","Глюкоза","Амилаза","Щелочная фосфатаза (норма)","Щелочная фосфатаза (патология)","Кальций","Магний","Железо","C-реактивный белок","Ревматоидный фактор","Антистрептолизин-О","ЛПНП","ЛПВП","Проба Реберга","Глюкоза капиллярная","РМП"]
[null,null,"Кол-во реагента на 1 анализ, мкл.",2,1,1.8,1.8,1.9,0.5,1,0.5,0,2,2,1,0,1,0,1,1,1,0,2,2,1,0.2,0.2,0.2,1,1,0,1,0.1]
[null,null,"2020-01-01",{"$f":"D1","v":"Общий белок"},"Альбумин","Общий билирубин (норма)","Общий билирубин (патология)","Прямой билирубин","Непрямой билирубин","Мочевина","Креатинин","Мочевая кислота","Холестерин","Триглицериды","АЛТ (норма)","АЛТ (патология)","АСТ (норма)","АСТ (патология)","Глюкоза","Амилаза","Щелочная фосфатаза (норма)","Щелочная фосфатаза (патология)","Кальций","Магний","Железо","C-реактивный белок","Ревматоидный фактор","Антистрептолизин-О","ЛПНП","ЛПВП","Проба Реберга","Глюкоза капиллярная","РМП"]
[{"$f":"IF(ISNUMBER(C4),\"\",MAX($C$3:C4))","v":"2020-01-01"},null,"Пациенты (омс) поликлиника",1]
[{"$f":"IF(ISNUMBER(C5),\"\",MAX($C$3:C5))","v":"2020-01-01"},null,"Дневной стационар",null,null,null,null,null,null,null,null,1,null,null,null,null,null,1]
[{"$f":"IF(ISNUMBER(C6),\"\",MAX($C$3:C6))","v":"2020-01-01"},null,"Платные",null,null,null,1]
[{"$f":"IF(ISNUMBER(C7),\"\",MAX($C$3:C7))","v":"2020-01-01"},null,"По договору",null,null,null,null,null,null,null,null,null,null,1,null,null,1]
[{"$f":"IF(ISNUMBER(C8),\"\",MAX($C$3:C8))","v":"2020-01-01"},null,"Мед. осмотры",null,null,null,null,1,null,null,1]
[{"$f":"IF(ISNUMBER(C9),\"\",MAX($C$3:C9))","v":"2020-01-01"},null,"Обработано венозной крови",null,null,1]
[{"$f":"IF(ISNUMBER(C10),\"\",MAX($C$3:C10))","v":"2020-01-01"},null,"Контроль качества",null,null,null,null,null,null,1,null,null,null,null,null,null,null,1]
[{"$f":"IF(ISNUMBER(C11),\"\",MAX($C$3:C11))","v":"2020-01-01"},null,"Регистрация анализов"]
[{"$f":"IF(ISNUMBER(C12),\"\",MAX($C$3:C12))","v":"2020-01-01"},null,"Повторы"]
[null,null,{"$f":"C3+1","v":"2020-01-02"}]
[{"$f":"IF(ISNUMBER(C14),\"\",MAX($C$3:C14))","v":"2020-01-02"},null,"Пациенты (омс) поликлиника"]
[{"$f":"IF(ISNUMBER(C15),\"\",MAX($C$3:C15))","v":"2020-01-02"},null,"Дневной стационар",null,null,null,null,null,null,null,null,null,null,null,null,null,null,5]
[{"$f":"IF(ISNUMBER(C16),\"\",MAX($C$3:C16))","v":"2020-01-02"},null,"Платные",null,null,null,null,5,null,null,null,null,null,null,5]
[{"$f":"IF(ISNUMBER(C17),\"\",MAX($C$3:C17))","v":"2020-01-02"},null,"По договору"]
[{"$f":"IF(ISNUMBER(C18),\"\",MAX($C$3:C18))","v":"2020-01-02"},null,"Мед. осмотры",null,null,null,null,null,null,null,null,5,null,null,null,null,null,null,5]
[{"$f":"IF(ISNUMBER(C19),\"\",MAX($C$3:C19))","v":"2020-01-02"},null,"Обработано венозной крови",null,5,null,null,null,5]
[{"$f":"IF(ISNUMBER(C20),\"\",MAX($C$3:C20))","v":"2020-01-02"},null,"Контроль качества"]
[{"$f":"IF(ISNUMBER(C21),\"\",MAX($C$3:C21))","v":"2020-01-02"},null,"Регистрация анализов",null,null,null,null,null,null,null,null,null,null,null,null,5]
[{"$f":"IF(ISNUMBER(C22),\"\",MAX($C$3:C22))","v":"2020-01-02"},null,"Повторы"]
[null,null,"2020-01-03"]
[{"$f":"IF(ISNUMBER(C24),\"\",MAX($C$3:C24))","v":"2020-01-03"},null,"Пациенты (омс) поликлиника"]
[{"$f":"IF(ISNUMBER(C25),\"\",MAX($C$3:C25))","v":"2020-01-03"},null,"Дневной стационар",null,null,null,null,null,7]
[{"$f":"IF(ISNUMBER(C26),\"\",MAX($C$3:C26))","v":"2020-01-03"},null,"Платные"]
[{"$f":"IF(ISNUMBER(C27),\"\",MAX($C$3:C27))","v":"2020-01-03"},null,"По договору",null,null,null,7,null,null,null,7]
[{"$f":"IF(ISNUMBER(C28),\"\",MAX($C$3:C28))","v":"2020-01-03"},null,"Мед. осмотры",null,null,null,null,null,null,null,null,null,null,null,7,null,null,null,null,7]
[{"$f":"IF(ISNUMBER(C29),\"\",MAX($C$3:C29))","v":"2020-01-03"},null,"Обработано венозной крови"]
[{"$f":"IF(ISNUMBER(C30),\"\",MAX($C$3:C30))","v":"2020-01-03"},null,"Контроль качества"]
[{"$f":"IF(ISNUMBER(C31),\"\",MAX($C$3:C31))","v":"2020-01-03"},null,"Регистрация анализов",null,null,null,null,null,null,null,7]
[{"$f":"IF(ISNUMBER(C32),\"\",MAX($C$3:C32))","v":"2020-01-03"},null,"Повторы"]
[null,null,"2020-09-04"]
[{"$f":"IF(ISNUMBER(C34),\"\",MAX($C$3:C34))","v":"2020-09-04"},null,"Пациенты (омс) поликлиника"]
[{"$f":"IF(ISNUMBER(C35),\"\",MAX($C$3:C35))","v":"2020-09-04"},null,"Дневной стационар",null,null,null,null,null,6,null,6,null,null,null,6,null,6]
[{"$f":"IF(ISNUMBER(C36),\"\",MAX($C$3:C36))","v":"2020-09-04"},null,"Платные",null,null,null,6]
[{"$f":"IF(ISNUMBER(C37),\"\",MAX($C$3:C37))","v":"2020-09-04"},null,"По договору",null,null,null,null,null,null,null,null,null,null,null,null,null,null,null,null,6]
[{"$f":"IF(ISNUMBER(C38),\"\",MAX($C$3:C38))","v":"2020-09-04"},null,"Мед. осмотры",null,null,null,null,null,null,null,null,6]
[{"$f":"IF(ISNUMBER(C39),\"\",MAX($C$3:C39))","v":"2020-09-04"},null,"Обработано венозной крови",null,null,null,null,6,null,null,null,null,null,null,null,null,6]
[{"$f":"IF(ISNUMBER(C40),\"\",MAX($C$3:C40))","v":"2020-09-04"},null,"Контроль качества"]
[{"$f":"IF(ISNUMBER(C41),\"\",MAX($C$3:C41))","v":"2020-09-04"},null,"Регистрация анализов"]
[{"$f":"IF(ISNUMBER(C42),\"\",MAX($C$3:C42))","v":"2020-09-04"},null,"Повторы"]
[null,null,"2020-03-05"]
[{"$f":"IF(ISNUMBER(C44),\"\",MAX($C$3:C44))","v":"2020-09-04"},null,"Пациенты (омс) поликлиника"]
[{"$f":"IF(ISNUMBER(C45),\"\",MAX($C$3:C45))","v":"2020-09-04"},null,"Дневной стационар",null,null,null,null,null,8]
[{"$f":"IF(ISNUMBER(C46),\"\",MAX($C$3:C46))","v":"2020-09-04"},null,"Платные",null,null,8,null,null,null,null,null,8]
[{"$f":"IF(ISNUMBER(C47),\"\",MAX($C$3:C47))","v":"2020-09-04"},null,"По договору",null,null,null,8,null,null,null,null,null,null,8]
[{"$f":"IF(ISNUMBER(C48),\"\",MAX($C$3:C48))","v":"2020-09-04"},null,"Мед. осмотры",null,null,null,null,8,null,null,null,null,null,null,null,8]
[{"$f":"IF(ISNUMBER(C49),\"\",MAX($C$3:C49))","v":"2020-09-04"},null,"Обработано венозной крови",null,null,8]
[{"$f":"IF(ISNUMBER(C50),\"\",MAX($C$3:C50))","v":"2020-09-04"},null,"Контроль качества",null,null,null,null,8]
[{"$f":"IF(ISNUMBER(C51),\"\",MAX($C$3:C51))","v":"2020-09-04"},null,"Регистрация анализов",null,null,null,null,null,null,null,null,null,8]
[{"$f":"IF(ISNUMBER(C52),\"\",MAX($C$3:C52))","v":"2020-09-04"},null,"Повторы"]

{"sheet":"Лист1","index":1,"n_rows":0,"n_cols":0,"rows_kept":0,"cut":false,"hidden":true,"merged":[]}

{"sheet":"Лист2","index":2,"n_rows":0,"n_cols":0,"rows_kept":0,"cut":false,"hidden":true,"merged":[]}

{"sheet":"Лист6","index":3,"n_rows":0,"n_cols":0,"rows_kept":0,"cut":false,"hidden":true,"merged":[]}

{"sheet":"Расходование реагентов","index":4,"n_rows":40,"n_cols":76,"rows_kept":40,"cut":false,"hidden":false,"merged":[[2,23,2,37]]}
[]
[]
[null,null,null,null,null,null,null,null,null,null,null,null,null,null,null,null,null,null,null,null,null,null,null,2019]
[null,null,null,null,null,null,null,null,null,null,null,null,null,null,null,null,null,null,null,null,null,null,null,null,null,null,"2020-01-01","2020-02-01","2020-03-01","2020-04-01","2020-05-01","2020-06-01","2020-07-01","2020-08-01","2020-09-01","2020-10-01","2020-11-01","2020-12-01","итого","Кол-во единиц",null,"Наименование","ед ","Общий белок","Альбумин","Общий билирубин (норма)","Общий билирубин (патология)","Прямой билирубин","Непрямой билирубин","Мочевина","Креатинин","Мочевая кислота","Холестерин","Триглицериды","АЛТ (норма)","АЛТ (патология)","АСТ (норма)","АСТ (патология)","Глюкоза","Амилаза","Щелочная фосфатаза (норма)","Щелочная фосфатаза (патология)","Кальций","Магний","Железо","C-реактивный белок","Ревматоидный фактор","Антистрептолизин-О","ЛПНП","ЛПВП","Проба Реберга","Глюкоза капиллярная","РМП","группы крови","резус - фактор","кол-во в 1 единице"]
[null,null,null,null,null,null,null,null,null,null,null,null,null,null,null,null,null,null,null,null,null,null,null,"Набор для определения креатинина ","мл","Расход",{"$f":"SUMPRODUCT((MONTH(Биохимия!$A$4:$A$52)=MONTH(AA$4))*(Биохимия!$D$4:$AG$52)*(INDEX($AR$5:$BU$40,MATCH($X5,$AP$5:$AP$40,),))*(ISNUMBER(MATCH(Биохимия!$C$4:$C$52,{\"Пациенты (омс) поликлиника\",\"Повторы\",\"Контроль качества\"},))))","v":0},null,null,null,null,null,null,null,null,null,null,null,null,null,null,"Набор для определения креатинина ","мл",null,null,null,null,null,null,null,0.4,null,null,null,null,null,null,null,null,null,null,null,null,null,null,null,null,null,null,null,null,null,null,null,null,100]
[null,null,null,null,null,null,null,null,null,null,null,null,null,null,null,null,null,null,null,null,null,null,null,"Набор реагентов для определения аспартатаминотрансферазы","мл",null,null,null,null,null,null,null,null,null,null,null,null,null,null,null,null,"Набор реагентов для определения аспартатаминотрансферазы","мл",null,null,null,null,null,null,null,null,null,null,null,null,null,1,1,null,null,null,null,null,null,null,null,null,null,null,null,null,null,null,null,null,100]
[null,null,null,null,null,null,null,null,null,null,null,null,null,null,null,null,null,null,null,null,null,null,null,"Предназначен для определения аланинаминотрансферазы","мл",null,null,null,null,null,null,null,null,null,null,null,null,null,null,null,null,"Предназначен для определения аланинаминотрансферазы","мл",null,null,null,null,null,null,null,null,null,null,null,1,1,null,null,null,null,null,null,null,null,null,null,null,null,null,null,null,null,null,null,null,100]
[null,null,null,null,null,null,null,null,null,null,null,null,null,null,null,null,null,null,null,null,null,null,null,"Набор реагентов для определения щелочной фосфатазы","мл",null,null,null,null,null,null,null,null,null,null,null,null,null,null,null,null,"Набор реагентов для определения щелочной фосфатазы","мл",null,null,null,null,null,null,null,null,null,null,null,null,null,null,null,null,null,1,1,null,null,null,null,null,null,null,null,null,null,null,null,null,200]
[null,null,null,null,null,null,null,null,null,null,null,null,null,null,null,null,null,null,null,null,null,null,null,"Набор для определения альфа-амилазы","мл",null,null,null,null,null,null,null,null,null,null,null,null,null,null,null,null,"Набор для определения альфа-амилазы","мл",null,null,null,null,null,null,null,null,null,null,null,null,null,null,null,null,1,null,null,null,null,null,null,null,null,null,null,null,null,null,null,null,100]
[null,null,null,null,null,null,null,null,null,null,null,null,null,null,null,null,null,null,null,null,null,null,null,"Набор реагентов для определения мочевины","мл",null,null,null,null,null,null,null,null,null,null,null,null,null,null,null,null,"Набор реагентов для определения мочевины","мл",null,null,null,null,null,null,1,null,null,null,null,null,null,null,null,null,null,null,null,null,null,null,null,null,null,null,null,null,null,null,null,null,50]
[null,null,null,null,null,null,null,null,null,null,null,null,null,null,null,null,null,null,null,null,null,null,null,"Набор реагентов для определения магния","мл",null,null,null,null,null,null,null,null,null,null,null,null,null,null,null,null,"Набор реагентов для определения магния","мл",null,null,null,null,null,null,null,null,null,null,null,null,null,null,null,null,null,null,null,null,2,null,null,null,null,null,null,null,null,null,null,null,200]
[null,null,null,null,null,null,null,null,null,null,null,null,null,null,null,null,null,null,null,null,null,null,null,"Набор реагентов для определения кальция","мл",null,null,null,null,null,null,null,null,null,null,null,null,null,null,null,null,"Набор реагентов для определения кальция","мл",null,null,null,null,null,null,null,null,null,null,null,null,null,null,null,null,null,null,null,2,null,null,null,null,null,null,null,null,null,null,null,null,200]
[null,null,null,null,null,null,null,null,null,null,null,null,null,null,null,null,null,null,null,null,null,null,null,"Набор для определения общего холестерина","мл",null,null,null,null,null,null,null,null,null,null,null,null,null,null,null,null,"Набор для определения общего холестерина","мл",null,null,null,null,null,null,null,null,null,1,null,null,null,null,null,null,null,null,null,null,null,null,null,null,null,null,null,null,null,null,null,null,200]
[null,null,null,null,null,null,null,null,null,null,null,null,null,null,null,null,null,null,null,null,null,null,null,"Набор для определения HDL холестерина","мл",null,null,null,null,null,null,null,null,null,null,null,null,null,null,null,null,"Набор для определения HDL холестерина","мл",null,null,null,null,null,null,null,null,null,1,null,null,null,null,null,null,null,null,null,null,null,null,null,null,null,null,null,null,null,null,null,null,100]
[null,null,null,null,null,null,null,null,null,null,null,null,null,null,null,null,null,null,null,null,null,null,null,"Набор реагентов для определения триглицеридов ","мл",null,null,null,null,null,null,null,null,null,null,null,null,null,null,null,null,"Набор реагентов для определения триглицеридов ","мл",null,null,null,null,null,null,null,null,null,null,1,null,null,null,null,null,null,null,null,null,null,null,null,null,null,null,null,null,null,null,null,null,200]
[null,null,null,null,null,null,null,null,null,null,null,null,null,null,null,null,null,null,null,null,null,null,null,"Набор реагентов для определения общего и прямого билирубина ","мл",null,null,null,null,null,null,null,null,null,null,null,null,null,null,null,null,"Набор реагентов для определения общего и прямого билирубина ","мл",null,null,0.1,0.1,0.8,null,null,null,null,null,null,null,null,null,null,null,null,null,null,null,null,null,null,null,null,null,null,null,null,null,null,null,200]
[null,null,null,null,null,null,null,null,null,null,null,null,null,null,null,null,null,null,null,null,null,null,null,"Набор реагентов. СРБ - латекс","мл",null,null,null,null,null,null,null,null,null,null,null,null,null,null,null,null,"Набор реагентов. СРБ - латекс","мл",null,null,null,null,null,null,null,null,null,null,null,null,null,null,null,null,null,null,null,null,null,null,0.02,null,null,null,null,null,null,null,null,null,5]
[null,null,null,null,null,null,null,null,null,null,null,null,null,null,null,null,null,null,null,null,null,null,null,"Набор реагентов. РФ - латекс","мл",null,null,null,null,null,null,null,null,null,null,null,null,null,null,null,null,"Набор реагентов. РФ - латекс","мл",null,null,null,null,null,null,null,null,null,null,null,null,null,null,null,null,null,null,null,null,null,null,null,0.02,null,null,null,null,null,null,null,null,5]
[null,null,null,null,null,null,null,null,null,null,null,null,null,null,null,null,null,null,null,null,null,null,null,"Набор реагентов. Асло - латекс","мл",null,null,null,null,null,null,null,null,null,null,null,null,null,null,null,null,"Набор реагентов. Асло - латекс","мл",null,null,null,null,null,null,null,null,null,null,null,null,null,null,null,null,null,null,null,null,null,null,null,null,0.02,null,null,null,null,null,null,null,5]
[null,null,null,null,null,null,null,null,null,null,null,null,null,null,null,null,null,null,null,null,null,null,null,"Набор реагентов для определения общего белка","мл",null,null,null,null,null,null,null,null,null,null,null,null,null,null,null,null,"Набор реагентов для определения общего белка","мл",1,null,null,null,null,null,null,null,null,null,null,null,null,null,null,null,null,null,null,null,null,null,null,null,null,null,null,null,null,null,null,null,1000]
[null,null,null,null,null,null,null,null,null,null,null,null,null,null,null,null,null,null,null,null,null,null,null,"Антиген кардиолипиновый","мл",null,null,null,null,null,null,null,null,null,null,null,null,null,null,null,null,"Антиген кардиолипиновый","мл",null,null,null,null,null,null,null,null,null,null,null,null,null,null,null,null,null,null,null,null,null,null,null,null,null,null,null,null,null,0.03,null,null,200]
[null,null,null,null,null,null,null,null,null,null,null,null,null,null,null,null,null,null,null,null,null,null,null,"Крнтрольная сыворотка (положительная контроль) для реакции микропреципитации на РМП (сифилис)","мл",null,null,null,null,null,null,null,null,null,null,null,null,null,null,null,null,"Крнтрольная сыворотка (положительная контроль) для реакции микропреципитации на РМП (сифилис)","мл",null,null,null,null,null,null,null,null,null,null,null,null,null,null,null,null,null,null,null,null,null,null,null,null,null,null,null,null,null,0.01,null,null,40]
[null,null,null,null,null,null,null,null,null,null,null,null,null,null,null,null,null,null,null,null,null,null,null,"Крнтрольная сыворотка (слабоположительный контроль) для реакции микропреципитации на РМП (сифилис)","мл",null,null,null,null,null,null,null,null,null,null,null,null,null,null,null,null,"Крнтрольная сыворотка (слабоположительный контроль) для реакции микропреципитации на РМП (сифилис)","мл",null,null,null,null,null,null,null,null,null,null,null,null,null,null,null,null,null,null,null,null,null,null,null,null,null,null,null,null,null,0.01,null,null,40]
[null,null,null,null,null,null,null,null,null,null,null,null,null,null,null,null,null,null,null,null,null,null,null,"Набор реагентов - контрольный материал","мл",null,null,null,null,null,null,null,null,null,null,null,null,null,null,null,null,"Набор реагентов - контрольный материал","мл",null,null,null,null,null,null,null,null,null,null,null,null,null,null,null,null,null,null,null,null,null,null,null,null,null,null,null,null,null,0.01,null,null,200]
[null,null,null,null,null,null,null,null,null,null,null,null,null,null,null,null,null,null,null,null,null,null,null,"Набор реагентов для определения железа","мл",null,null,null,null,null,null,null,null,null,null,null,null,null,null,null,null,"Набор реагентов для определения железа","мл",null,null,null,null,null,null,null,null,null,null,null,null,null,null,null,null,null,null,null,null,null,1,null,null,null,null,null,null,null,null,null,null,100]
[null,null,null,null,null,null,null,null,null,null,null,null,null,null,null,null,null,null,null,null,null,null,null,"Набор реагентов для определения альбумина","мл",null,null,null,null,null,null,null,null,null,null,null,null,null,null,null,null,"Набор реагентов для определения альбумина","мл",null,1,null,null,null,null,null,null,null,null,null,null,null,null,null,null,null,null,null,null,null,null,null,null,null,null,null,null,null,null,null,null,100]
[null,null,null,null,null,null,null,null,null,null,null,null,null,null,null,null,null,null,null,null,null,null,null,"Цоликлон  анти А","мл",null,null,null,null,null,null,null,null,null,null,null,null,null,null,null,null,"Цоликлон  анти А","мл",null,null,null,null,null,null,null,null,null,null,null,null,null,null,null,null,null,null,null,null,null,null,null,null,null,null,null,null,null,null,0.1,null,100]
[null,null,null,null,null,null,null,null,null,null,null,null,null,null,null,null,null,null,null,null,null,null,null,"Цоликлон анти В ","мл",null,null,null,null,null,null,null,null,null,null,null,null,null,null,null,null,"Цоликлон анти В ","мл",null,null,null,null,null,null,null,null,null,null,null,null,null,null,null,null,null,null,null,null,null,null,null,null,null,null,null,null,null,null,0.1,null,100]
[null,null,null,null,null,null,null,null,null,null,null,null,null,null,null,null,null,null,null,null,null,null,null,"Цоликлон анти Д","мл",null,null,null,null,null,null,null,null,null,null,null,null,null,null,null,null,"Цоликлон анти Д","мл",null,null,null,null,null,null,null,null,null,null,null,null,null,null,null,null,null,null,null,null,null,null,null,null,null,null,null,null,null,null,null,0.1,100]
[null,null,null,null,null,null,null,null,null,null,null,null,null,null,null,null,null,null,null,null,null,null,null,"Мембрана глюкозооксидазная","шт",null,null,null,null,null,null,null,null,null,null,null,null,null,null,null,null,"Мембрана глюкозооксидазная","шт",null,null,null,null,null,null,null,null,null,null,null,null,null,null,null,0.1,null,null,null,null,null,null,null,null,null,null,null,null,0.1,null,null,null,10]
[null,null,null,null,null,null,null,null,null,null,null,null,null,null,null,null,null,null,null,null,null,null,null,"Калибратор","мл",null,null,null,null,null,null,null,null,null,null,null,null,null,null,null,null,"Калибратор","мл",null,null,null,null,null,null,null,null,null,null,null,null,null,null,null,0.2,null,null,null,null,null,null,null,null,null,null,null,null,0.2,null,null,null,20]
[null,null,null,null,null,null,null,null,null,null,null,null,null,null,null,null,null,null,null,null,null,null,null,"Буферная смесь","мл",null,null,null,null,null,null,null,null,null,null,null,null,null,null,null,null,"Буферная смесь","мл",null,null,null,null,null,null,null,null,null,null,null,null,null,null,null,0.3,null,null,null,null,null,null,null,null,null,null,null,null,0.3,null,null,null,50000]
[null,null,null,null,null,null,null,null,null,null,null,null,null,null,null,null,null,null,null,null,null,null,null,"промывающий раствор для биохимических анализатров (унивеерсальный) 1 литр","мл",null,null,null,null,null,null,null,null,null,null,null,null,null,null,null,null,"промывающий раствор для биохимических анализатров (унивеерсальный) 1 литр","мл",0.01,0.01,0.01,0.01,0.01,0.01,0.01,0.01,0.01,0.01,0.01,0.01,0.01,0.01,0.01,0.01,0.01,0.01,0.01,0.01,0.01,0.01,null,null,null,0.01,null,null,null,null,null,null,10000]
[null,null,null,null,null,null,null,null,null,null,null,null,null,null,null,null,null,null,null,null,null,null,null,"пробирка стеклянная","шт",null,null,null,null,null,null,null,null,null,null,null,null,null,null,null,null,"пробирка стеклянная","шт",3.3000000000000002E-2,3.3000000000000002E-2,3.3000000000000002E-2,3.3000000000000002E-2,3.3000000000000002E-2,3.3000000000000002E-2,3.3000000000000002E-2,3.3000000000000002E-2,3.3000000000000002E-2,3.3000000000000002E-2,3.3000000000000002E-2,3.3000000000000002E-2,3.3000000000000002E-2,3.3000000000000002E-2,3.3000000000000002E-2,3.3000000000000002E-2,3.3000000000000002E-2,3.3000000000000002E-2,3.3000000000000002E-2,3.3000000000000002E-2,3.3000000000000002E-2,3.3000000000000002E-2,3.3000000000000002E-2,3.3000000000000002E-2,3.3000000000000002E-2,3.3000000000000002E-2,null,null,null,null,null,null,100]
[null,null,null,null,null,null,null,null,null,null,null,null,null,null,null,null,null,null,null,null,null,null,null,"палочка стеклянная","шт",null,null,null,null,null,null,null,null,null,null,null,null,null,null,null,null,"палочка стеклянная","шт",null,null,null,null,null,null,null,null,null,null,null,null,null,null,null,0.1,null,null,null,null,null,null,null,null,null,null,null,null,0.1,null,null,null,100]
[null,null,null,null,null,null,null,null,null,null,null,null,null,null,null,null,null,null,null,null,null,null,null,"наконечники для дозатора 5-200 мкл","шт",null,null,null,null,null,null,null,null,null,null,null,null,null,null,null,null,"наконечники для дозатора 5-200 мкл","шт",2,2,2,2,2,2,2,2,2,2,2,2,2,2,2,2,2,2,2,2,2,2,2,2,2,2,null,2,2,null,4,2,500]
[null,null,null,null,null,null,null,null,null,null,null,null,null,null,null,null,null,null,null,null,null,null,null,"наконечники для дозатора до 10мкл","шт",null,null,null,null,null,null,null,null,null,null,null,null,null,null,null,null,"наконечники для дозатора до 10мкл","шт",0.5,0.5,0.5,0.5,0.5,0.5,0.5,0.5,0.5,0.5,0.5,0.5,0.5,0.5,0.5,null,0.5,0.5,0.5,0.5,0.5,0.5,0.5,0.5,0.5,0.5,null,0.5,0.5,null,null,null,500]
[null,null,null,null,null,null,null,null,null,null,null,null,null,null,null,null,null,null,null,null,null,null,null,"наконечники для дозатора до 1000 мкл","шт",null,null,null,null,null,null,null,null,null,null,null,null,null,null,null,null,"наконечники для дозатора до 1000 мкл","шт",1,1,1,1,1,1,1,1,1,1,1,1,1,1,1,1,1,1,1,1,1,1,1,1,1,1,null,1,1,1,null,null,500]
[null,null,null,null,null,null,null,null,null,null,null,null,null,null,null,null,null,null,null,null,null,null,null,"микропробирка эппендорф","шт",null,null,null,null,null,null,null,null,null,null,null,null,null,null,null,null,"микропробирка эппендорф","шт",1,1,1,1,1,1,1,1,1,1,1,1,1,1,1,1,1,1,1,1,1,1,1,1,1,1,null,1,1,1,null,null,500]
[null,null,null,null,null,null,null,null,null,null,null,null,null,null,null,null,null,null,null,null,null,null,null,"стандартные эритроциты","мл",null,null,null,null,null,null,null,null,null,null,null,null,null,null,null,null,"стандартные эритроциты","мл",null,null,null,null,null,null,null,null,null,null,null,null,null,null,null,null,null,null,null,null,null,null,null,null,null,null,null,null,null,null,0.06,null,100]

{"sheet":"Отчет","index":5,"n_rows":22,"n_cols":5,"rows_kept":22,"cut":false,"hidden":false,"merged":[]}
["Наименование","Январь","Март","Сентябрь","ед "]
["Набор реагентов для определения триглицеридов ",1,8,null,"мл"]
["Набор для определения креатинина ",6,null,2.4000000000000004,"мл"]
["Набор реагентов для определения альбумина",5,null,null,"мл"]
["Набор реагентов для определения аспартатаминотрансферазы",8,null,12,"мл"]
["Набор для определения альфа-амилазы",7,null,6,"мл"]
["Предназначен для определения аланинаминотрансферазы",17,8,6,"мл"]
["Набор реагентов для определения общего и прямого билирубина ",5.6999999999999993,15.200000000000001,5.4,"мл"]
["Набор реагентов для определения мочевины",1,null,null,"мл"]
["Набор для определения общего холестерина",null,8,null,"мл"]
["Набор для определения HDL холестерина",null,8,null,"мл"]
["Набор реагентов для определения общего белка",1,null,null,"мл"]
["Мембрана глюкозооксидазная",0.5,null,null,"шт"]
["Калибратор",1,null,null,"мл"]
["Буферная смесь",1.5,null,null,"мл"]
["промывающий раствор для биохимических анализатров (унивеерсальный) 1 литр",0.93000000000000038,0.79999999999999993,0.54,"мл"]
["пробирка стеклянная",3.0689999999999995,2.6400000000000006,1.7819999999999998,"шт"]
["палочка стеклянная",0.5,null,null,"шт"]
["наконечники для дозатора 5-200 мкл",186,160,108,"шт"]
["наконечники для дозатора до 10мкл",44,40,27,"шт"]
["наконечники для дозатора до 1000 мкл",93,80,54,"шт"]
["микропробирка эппендорф",93,80,54,"шт"]